bitfinex/quotes_BTCUSD_20251202
["timestamp","ask_amount","ask_price","bid_price","bid_amount"]
[1764664086211,2.0,86627.0,86625.0,0.002]
[1764664086408,2.0,86626.0,86624.0,0.01632]
[1764664086604,0.23088023,86625.0,86624.0,0.01632]
[1764664088163,0.23088023,86625.0,86624.0,0.01932]
[1764664090205,2.0,86626.0,86624.0,0.01932]
[1764664090421,0.23088023,86625.0,86624.0,0.01932]
[1764664091405,0.23087756,86626.0,86624.0,0.01932]
[1764664091937,0.23088023,86625.0,86624.0,0.01932]
[1764664092145,2.0,86635.0,86625.0,0.05502]
[1764664092325,0.24239629,86635.0,86629.0,0.23086887]
[1764664092643,2.0,86636.0,86632.0,0.23086052]
[1764664092874,2.0,86636.0,86633.0,0.01154294]
[1764664093075,2.0,86637.0,86635.0,0.23085357]
[1764664093305,2.0,86636.0,86634.0,0.23085624]
[1764664093476,2.0,86637.0,86635.0,0.23085358]
[1764664093672,2.0,86636.0,86635.0,0.23085358]
[1764664093974,2.0,86637.0,86635.0,0.23085358]
[1764664094172,2.0,86636.0,86635.0,0.002]
[1764664094518,0.24239067,86637.0,86635.0,0.23285358]
[1764664094519,2.0,86637.0,86635.0,0.23285358]
[1764664094718,2.02461808,86636.0,86635.0,0.23285358]
[1764664094924,2.02461808,86636.0,86635.0,0.23085358]
[1764664096222,2.02461808,86636.0,86635.0,0.002]
[1764664096429,2.34500899,86636.0,86635.0,0.002]
[1764664097102,2.29161899,86636.0,86635.0,0.002]
[1764664099636,2.25546899,86636.0,86635.0,0.002]
[1764664101720,2.02461808,86636.0,86635.0,0.002]
[1764664102849,2.02461808,86636.0,86635.0,0.23285358]
[1764664104511,2.02461808,86636.0,86635.0,0.002]
[1764664104747,2.25546899,86636.0,86635.0,0.002]
[1764664105466,2.29161899,86636.0,86635.0,0.002]
[1764664105669,2.34500899,86636.0,86635.0,0.002]
[1764664106150,2.29161899,86636.0,86635.0,0.002]
[1764664107248,2.25546899,86636.0,86635.0,0.002]
[1764664109921,2.34500899,86636.0,86635.0,0.002]
[1764664113266,2.37587134,86636.0,86635.0,0.002]
[1764664113637,2.34504888,86636.0,86635.0,0.002]
[1764664114042,2.37587163,86636.0,86635.0,0.002]
[1764664115133,2.37180163,86636.0,86635.0,0.002]
[1764664115551,2.34097888,86636.0,86635.0,0.002]
[1764664115907,2.37180163,86636.0,86635.0,0.002]
[1764664120323,2.34097888,86636.0,86635.0,0.002]
[1764664120518,2.37181427,86636.0,86635.0,0.002]
[1764664120718,2.34097888,86636.0,86635.0,0.002]
[1764664121395,2.34099435,86636.0,86635.0,0.002]
[1764664121559,0.24242781,86624.0,86621.0,0.23088888]
[1764664121767,0.25555469,86625.0,86621.0,0.24243342]
[1764664121973,0.2424273,86624.0,86621.0,0.23088888]
[1764664122186,0.26710074,86624.0,86622.0,0.23088783]
[1764664122339,0.2424273,86624.0,86621.0,0.23088888]
[1764664122738,0.23088558,86623.0,86621.0,0.23088888]
[1764664122953,0.25555899,86623.0,86621.0,0.23388888]
[1764664123160,0.02467341,86623.0,86621.0,0.23388888]
[1764664123364,0.31719822,86622.0,86621.0,0.003]
[1764664123563,2.34187163,86622.0,86621.0,0.003]
[1764664123805,2.3824743,86622.0,86621.0,0.003]
[1764664124121,0.23091221,86613.0,86610.0,0.00025383]
[1764664124260,0.31467562,86613.0,86610.0,0.00025383]
[1764664124461,0.36756562,86613.0,86610.0,0.00025383]
[1764664125708,0.36756562,86613.0,86612.0,0.00238438]
[1764664127211,2.36756562,86613.0,86612.0,0.00238438]
[1764664128522,2.69056562,86613.0,86612.0,0.00238438]
[1764664128856,2.72724025,86613.0,86612.0,0.00038438]
[1764664129257,2.87848262,86613.0,86612.0,0.00038438]
[1764664129467,2.87848262,86613.0,86612.0,0.00138438]
[1764664130062,2.93948521,86613.0,86612.0,0.00138438]
[1764664130264,2.87848262,86613.0,86612.0,0.00138438]
[1764664130600,2.87848262,86613.0,86590.0,0.0002]
[1764664130601,2.23097088,86591.0,86590.0,0.0002]
[1764664130796,2.33343961,86591.0,86590.0,0.0002]
[1764664131006,2.42300424,86591.0,86590.0,0.0002]
[1764664131208,2.38632961,86591.0,86590.0,0.0002]
[1764664133725,2.36800961,86591.0,86590.0,0.0002]
[1764664134131,2.10246873,86591.0,86590.0,0.0002]
[1764664134362,2.02605532,86591.0,86590.0,0.0002]
[1764664134778,2.2570262,86591.0,86590.0,0.0002]
[1764664135831,2.2904462,86591.0,86590.0,0.0022]
[1764664136190,2.2570262,86591.0,86590.0,0.00283476]
[1764664136757,2.02605532,86591.0,86590.0,0.23380831]
[1764664136991,2.02605532,86591.0,86590.0,0.00283476]
[1764664138168,2.2570262,86591.0,86590.0,0.00283476]
[1764664138827,2.2917349,86591.0,86590.0,0.00283476]
[1764664140235,2.3780449,86591.0,86590.0,0.00283476]
[1764664141036,2.06076402,86591.0,86590.0,0.00283476]
[1764664141242,0.00038532,86591.0,86590.0,0.26012831]
[1764664142480,0.00038532,86591.0,86590.0,0.28219831]
[1764664148169,0.00038532,86591.0,86590.0,0.28019831]
[1764664148387,0.00138532,86591.0,86590.0,0.28419831]
[1764664148976,0.00138532,86591.0,86590.0,0.6697213]
[1764664149674,0.00038532,86591.0,86590.0,0.6657213]
[1764664150001,0.00138532,86591.0,86590.0,0.6697213]
[1764664150410,0.00138532,86591.0,86590.0,0.6657213]
[1764664150411,0.00038532,86591.0,86590.0,0.6657213]
[1764664150588,0.00138532,86591.0,86590.0,0.6697213]
[1764664152838,0.00138532,86591.0,86590.0,0.004]
[1764664153177,0.00138532,86591.0,86590.0,0.23497355]
[1764664154887,0.00306191,86610.0,86609.0,0.23092288]
[1764664155228,0.00294656,86610.0,86609.0,0.23092288]
[1764664157270,0.00294656,86610.0,86609.0,0.23292288]
[1764664162729,0.07155416,86629.0,86627.0,0.23087441]
[1764664162938,2.0,86628.0,86627.0,0.23087441]
[1764664163131,2.00034892,86628.0,86627.0,0.23087441]
[1764664163331,2.01189253,86628.0,86626.0,0.230877]
[1764664163552,2.0,86628.0,86626.0,0.230877]
[1764664163830,2.0,86628.0,86627.0,0.2308749]
[1764664164279,2.01154361,86628.0,86624.0,0.23088067]
[1764664164455,2.0,86627.0,86626.0,0.23087756]
[1764664164634,1.76432426,86627.0,86626.0,0.23087756]
[1764664164879,0.001,86628.0,86627.0,0.2308749]
[1764664165612,0.0001156,86629.0,86627.0,0.2308749]
[1764664165811,0.0001156,86629.0,86628.0,0.23087223]
[1764664166247,0.0001156,86629.0,86618.0,0.57116042]
[1764664166248,0.0001156,86629.0,86626.0,0.23087553]
[1764664166626,0.01165907,86629.0,86626.0,0.23087553]
[1764664166828,0.23098586,86629.0,86626.0,0.23087553]
[1764664167415,0.01165907,86629.0,86626.0,0.23087553]
[1764664167636,0.24252955,86629.0,86626.0,0.23087553]
[1764664167842,0.01165907,86629.0,86626.0,0.23087553]
[1764664168038,0.0001156,86629.0,86626.0,0.23087553]
[1764664168198,0.0001156,86629.0,86627.0,0.23087483]
[1764664168643,0.24252971,86629.0,86627.0,0.23087396]
[1764664168818,0.0001156,86629.0,86627.0,0.23087396]
[1764664169021,0.0001156,86629.0,86628.0,0.23087223]
[1764664169373,0.00049624,86629.0,86628.0,0.23087223]
[1764664170081,0.00049624,86629.0,86627.0,0.23087396]
[1764664170288,0.0001156,86629.0,86627.0,0.23087396]
[1764664170697,0.0001156,86629.0,86628.0,0.23087223]
[1764664172256,0.0001156,86629.0,86627.0,0.23087396]
[1764664172506,0.0001156,86629.0,86628.0,0.23087223]
[1764664173916,0.0001156,86629.0,86627.0,0.23087396]
[1764664174120,0.0001156,86629.0,86628.0,0.23087223]
[1764664174520,0.0001156,86629.0,86627.0,0.23087396]
[1764664174720,0.0001156,86629.0,86628.0,0.23087223]
[1764664174926,0.23098744,86629.0,86626.0,0.23087729]
[1764664175121,0.23098744,86629.0,86628.0,0.23087223]
[1764664175122,0.0001156,86629.0,86628.0,0.23087223]
[1764664183800,2.02463569,86638.0,86637.0,0.23084704]
[1764664184190,2.02530173,86638.0,86637.0,0.23084704]
[1764664184553,2.00066604,86638.0,86637.0,0.23084704]
[1764664186225,2.00066604,86638.0,86631.0,0.01154321]
[1764664186226,0.01154414,86624.0,86615.0,0.01659]
[1764664186420,0.01154467,86620.0,86615.0,0.24749422]
[1764664186634,0.01154467,86620.0,86608.0,0.23092408]
[1764664186635,0.03736,86616.0,86609.0,0.24750755]
[1764664186849,0.03736,86616.0,86605.0,0.01154667]
[1764664186850,0.03736,86610.0,86605.0,0.01659]
[1764664187061,0.01154601,86610.0,86607.0,0.2309258]
[1764664187276,0.01154601,86610.0,86606.0,0.23093024]
[1764664187550,0.01154614,86609.0,86605.0,0.01659]
[1764664187720,0.01154614,86609.0,86607.0,0.2309278]
[1764664187925,0.23092657,86608.0,86606.0,0.23092557]
[1764664188349,0.23092657,86608.0,86606.0,0.23392557]
[1764664188557,0.24247284,86608.0,86605.0,0.24752346]
[1764664188842,0.23092872,86607.0,86605.0,0.01659]
[1764664189242,0.24247284,86608.0,86605.0,0.24752111]
[1764664189454,0.23093012,86607.0,86605.0,0.01659]
[1764664189612,0.23093088,86606.0,86605.0,0.01659]
[1764664189824,0.01154601,86610.0,86605.0,0.01659]
[1764664190029,0.01154614,86609.0,86606.0,0.23092866]
[1764664190850,0.01154614,86609.0,86607.0,0.23092746]
[1764664191061,0.24246865,86610.0,86607.0,0.23092746]
[1764664191227,0.01154601,86610.0,86607.0,0.23092654]
[1764664191433,0.24246641,86610.0,86606.0,0.23193077]
[1764664191636,0.24246933,86609.0,86606.0,0.23093077]
[1764664191864,0.27714347,86618.0,86609.0,0.01659]
[1764664192038,2.0,86616.0,86613.0,0.23090981]
[1764664192256,0.23092337,86609.0,86605.0,0.01659]
[1764664192436,0.03736,86611.0,86607.0,0.23092707]
[1764664192644,0.24246407,86611.0,86607.0,0.23092707]
[1764664192837,0.24246407,86611.0,86608.0,0.23092547]
[1764664193038,0.01154587,86611.0,86609.0,0.23092212]
[1764664193598,0.23091842,86611.0,86609.0,0.23092212]
[1764664193800,0.24246117,86612.0,86609.0,0.23092212]
[1764664193801,0.24246087,86612.0,86609.0,0.23092212]
[1764664193992,0.24246579,86613.0,86609.0,0.23092212]
[1764664194200,0.68581927,86630.0,86622.0,0.23088822]
[1764664194201,2.0,86623.0,86622.0,0.23088822]
[1764664194563,8.003e-05,86624.0,86623.0,0.23088556]
[1764664194759,0.02941003,86624.0,86620.0,0.2308909]
[1764664194956,0.02941003,86624.0,86621.0,0.2308888]
[1764664195179,0.02941003,86624.0,86623.0,0.23088556]
[1764664195389,0.001,86623.0,86621.0,0.23089089]
[1764664195722,0.02941003,86624.0,86622.0,0.230888]
[1764664195925,0.02941003,86624.0,86617.0,0.01154507]
[1764664195926,0.01154454,86621.0,86611.0,0.01154587]
[1764664196132,0.01154467,86620.0,86617.0,0.23090143]
[1764664196339,0.24244692,86617.0,86614.0,0.23090744]
[1764664196490,0.24244744,86617.0,86613.0,0.23090737]
[1764664196697,0.01154534,86615.0,86611.0,0.23091692]
[1764664196918,0.01154547,86614.0,86611.0,0.23091544]
[1764664197264,0.24245516,86614.0,86611.0,0.23091499]
[1764664197451,0.24245508,86614.0,86612.0,0.23091357]
[1764664197688,0.24245508,86614.0,86613.0,0.001]
[1764664197892,0.01154547,86614.0,86612.0,0.23091357]
[1764664198657,0.01154534,86615.0,86612.0,0.23091357]
[1764664198834,0.24245316,86615.0,86613.0,0.002]
[1764664199051,0.23090955,86614.0,86613.0,0.002]
[1764664199254,0.32221955,86614.0,86613.0,0.002]
[1764664199641,0.09131,86614.0,86613.0,0.002]
[1764664199836,0.09131,86614.0,86613.0,0.23291221]
[1764664200064,0.03736,86614.0,86613.0,0.23091221]
[1764664200262,0.03736,86614.0,86612.0,0.23091468]
[1764664200464,0.03736,86614.0,86613.0,0.23091221]
[1764664200662,0.02933,86616.0,86615.0,0.23090688]
[1764664200865,0.02459665,86621.0,86620.0,0.23089355]
[1764664201083,0.03614106,86622.0,86620.0,0.01659]
[1764664201286,0.01154454,86621.0,86619.0,0.23089616]
[1764664201781,0.01154467,86620.0,86617.0,0.23090132]
[1764664202308,0.24243825,86620.0,86617.0,0.23090132]
[1764664202683,0.23089638,86619.0,86610.0,0.23092012]
[1764664202886,0.01154521,86616.0,86613.0,0.23091216]
[1764664203304,0.01154547,86614.0,86611.0,0.2309163]
[1764664203515,0.29639332,86619.0,86613.0,0.01154561]
[1764664203951,0.24244477,86618.0,86615.0,0.23090545]
[1764664204158,0.24244392,86618.0,86615.0,0.23090545]
[1764664204317,0.24244994,86616.0,86613.0,0.23091045]
[1764664204527,0.06549481,86619.0,86614.0,0.23090955]
[1764664204884,0.01154494,86618.0,86615.0,0.23090499]
[1764664205242,0.06549481,86619.0,86617.0,0.23090155]
[1764664205612,0.24244843,86617.0,86613.0,0.2309115]
[1764664205927,0.06159,86614.0,86613.0,0.23091221]
[1764664206136,0.11893,86614.0,86613.0,0.23091221]
[1764664206783,0.02624,86614.0,86613.0,0.23091221]
[1764664207037,0.01154494,86618.0,86616.0,0.23090387]
[1764664207278,0.24244423,86618.0,86615.0,0.23090578]
[1764664207886,0.24244126,86619.0,86615.0,0.23090578]
[1764664208144,0.01154507,86617.0,86614.0,0.23090756]
[1764664208347,0.23097088,86591.0,86590.0,0.00134247]
[1764664208589,2.39938838,86591.0,86590.0,0.00134247]
[1764664208917,2.67125728,86591.0,86590.0,0.00134247]
[1764664209106,2.34825728,86591.0,86590.0,0.00134247]
[1764664209311,2.35288539,86591.0,86590.0,0.00134247]
[1764664209487,2.35296536,86591.0,86590.0,0.00134247]
[1764664209895,2.26027536,86591.0,86590.0,0.00134247]
[1764664210357,2.27102896,86591.0,86590.0,0.00134247]
[1764664210559,2.32836896,86591.0,86590.0,0.00434247]
[1764664210739,2.32836896,86591.0,86590.0,0.00134247]
[1764664210942,2.35292505,86591.0,86590.0,0.00134247]
[1764664211346,2.32836896,86591.0,86590.0,0.00134247]
[1764664211550,2.35291505,86591.0,86590.0,0.00134247]
[1764664213353,2.32836896,86591.0,86590.0,0.00134247]
[1764664214089,2.00007997,86591.0,86590.0,0.01655247]
[1764664214289,7.997e-05,86591.0,86590.0,0.03176247]
[1764664214777,7.997e-05,86591.0,86590.0,0.01655247]
[1764664215930,7.997e-05,86591.0,86590.0,0.24752602]
[1764664216343,7.997e-05,86591.0,86590.0,0.01655247]
[1764664216779,0.23105085,86591.0,86590.0,0.01755247]
[1764664217097,7.997e-05,86591.0,86590.0,0.01755247]
[1764664217234,0.23105085,86591.0,86590.0,0.01755247]
[1764664220312,0.23105085,86591.0,86590.0,0.00234247]
[1764664221608,0.32007085,86591.0,86590.0,0.00234247]
[1764664221810,7.997e-05,86591.0,86590.0,0.00234247]
[1764664222020,7.997e-05,86591.0,86590.0,0.01463247]
[1764664222230,7.997e-05,86591.0,86590.0,0.24560602]
[1764664224079,7.997e-05,86591.0,86590.0,0.24460602]
[1764664224481,7.997e-05,86591.0,86590.0,0.24760602]
[1764664226982,7.997e-05,86591.0,86590.0,0.23531602]
[1764664227386,7.997e-05,86591.0,86590.0,0.00434247]
[1764664227586,0.23105085,86591.0,86590.0,0.00434247]
[1764664228765,0.26703085,86591.0,86590.0,0.00434247]
[1764664229232,0.32007085,86591.0,86590.0,0.00434247]
[1764664229613,0.08909997,86591.0,86590.0,0.00434247]
[1764664229818,0.03605997,86591.0,86590.0,0.00434247]
[1764664230059,0.26703085,86591.0,86590.0,0.00434247]
[1764664230261,0.26703085,86591.0,86590.0,0.00134247]
[1764664230604,0.26703085,86591.0,86590.0,0.00234247]
[1764664231823,0.32007085,86591.0,86590.0,0.00234247]
[1764664232327,2.32007085,86591.0,86590.0,0.00234247]
[1764664232528,2.34463218,86591.0,86590.0,0.00234247]
[1764664232748,2.3492602,86591.0,86590.0,0.00234247]
[1764664233352,2.3492602,86591.0,86590.0,0.00134247]
[1764664239486,2.77345782,86591.0,86590.0,0.00134247]
[1764664239869,2.80947423,86591.0,86590.0,0.00134247]
[1764664240070,2.61650454,86587.0,86586.0,4.024e-05]
[1764664240306,2.72985587,86587.0,86586.0,4.024e-05]
[1764664240524,2.74817587,86587.0,86586.0,4.024e-05]
[1764664241139,2.66733288,86587.0,86586.0,4.024e-05]
[1764664241294,2.36265288,86587.0,86586.0,4.024e-05]
[1764664242104,2.80087884,86587.0,86586.0,4.024e-05]
[1764664242338,2.80187884,86587.0,86586.0,4.024e-05]
[1764664243136,2.90107646,86587.0,86586.0,4.024e-05]
[1764664246659,2.7858505,86587.0,86586.0,4.024e-05]
[1764664246856,2.55486895,86587.0,86586.0,4.024e-05]
[1764664247058,2.7858505,86587.0,86586.0,4.024e-05]
[1764664250402,2.73085587,86587.0,86586.0,4.024e-05]
[1764664250616,2.74917587,86587.0,86586.0,4.024e-05]
[1764664251336,2.86440183,86587.0,86586.0,4.024e-05]
[1764664251539,2.90107646,86587.0,86586.0,4.024e-05]
[1764664253197,2.93709287,86587.0,86586.0,4.024e-05]
[1764664253398,2.9417223,86587.0,86586.0,4.024e-05]
[1764664253974,2.61651521,86583.0,86582.0,0.00025396]
[1764664254195,2.98478347,86583.0,86582.0,0.00025396]
[1764664254830,0.01155401,86550.0,86534.0,0.23112262]
[1764664255011,0.01155334,86555.0,86548.0,0.24263726]
[1764664255012,0.24262125,86555.0,86548.0,0.24263726]
[1764664255212,0.01155348,86554.0,86548.0,0.23108298]
[1764664255574,0.01155348,86554.0,86547.0,0.01155441]
[1764664255781,0.02607,86557.0,86554.0,0.24262173]
[1764664256083,0.24262041,86556.0,86554.0,0.00038532]
[1764664256282,0.03415,86555.0,86554.0,0.00038532]
[1764664256487,0.08879,86555.0,86554.0,0.00038532]
[1764664257673,0.03415,86555.0,86554.0,0.00038532]
[1764664257860,0.08879,86555.0,86554.0,0.00038532]
[1764664258483,0.08879,86555.0,86554.0,0.00438532]
[1764664260551,2.11335898,86555.0,86554.0,0.00438532]
[1764664260702,2.11335898,86555.0,86520.0,0.0002]
[1764664260703,0.01155681,86529.0,86520.0,0.0002]
[1764664260916,0.04228,86521.0,86520.0,0.0002]
[1764664262007,0.05464,86526.0,86521.0,0.01155788]
[1764664262186,0.05464,86526.0,86524.0,0.23114841]
[1764664262388,0.05464,86526.0,86520.0,0.0002]
[1764664262389,0.02607,86522.0,86520.0,0.2353602]
[1764664263340,0.10711,86521.0,86520.0,0.0042]
[1764664263500,2.10711,86521.0,86520.0,0.0042]
[1764664263995,2.10711,86521.0,86520.0,0.0002]
[1764664264361,2.10711,86521.0,86520.0,0.0022]
[1764664264556,2.10711,86521.0,86520.0,0.0002]
[1764664264968,2.10711,86521.0,86520.0,0.0012]
[1764664265424,2.10711,86521.0,86510.0,0.00448024]
[1764664265425,2.23118447,86511.0,86510.0,0.00448024]
[1764664265595,2.61645851,86511.0,86510.0,0.00448024]
[1764664265759,2.69255851,86511.0,86510.0,0.00448024]
[1764664266384,2.25567851,86511.0,86510.0,0.00448024]
[1764664266582,2.0,86515.0,86510.0,0.00676787]
[1764664266842,0.23118379,86512.0,86510.0,0.00448024]
[1764664267066,0.01155882,86514.0,86510.0,0.00448024]
[1764664267284,0.24273987,86513.0,86510.0,0.00448024]
[1764664267448,0.23118422,86512.0,86510.0,0.00448024]
[1764664267654,0.004,86511.0,86510.0,0.00448024]
[1764664267833,0.01155895,86513.0,86510.0,0.10216024]
[1764664268182,0.01155895,86513.0,86510.0,0.00448024]
[1764664268332,0.01255882,86514.0,86510.0,0.00448024]
[1764664268536,0.01155895,86513.0,86510.0,0.00448024]
[1764664268950,0.001,86511.0,86510.0,0.00448024]
[1764664269378,0.001,86511.0,86510.0,0.04322024]
[1764664269843,0.001,86511.0,86510.0,0.10216024]
[1764664270387,0.01155842,86517.0,86513.0,0.24273758]
[1764664270590,0.01155815,86519.0,86516.0,0.06349]
[1764664270795,0.24272262,86519.0,86518.0,0.03874]
[1764664270995,0.01155868,86515.0,86510.0,0.00448024]
[1764664271181,0.24273385,86515.0,86510.0,0.01703959]
[1764664271390,0.24273647,86514.0,86510.0,0.00548024]
[1764664271590,0.01155868,86515.0,86511.0,0.01155922]
[1764664271795,0.24273983,86513.0,86510.0,0.00448024]
[1764664271995,0.01155882,86514.0,86510.0,0.06342024]
[1764664272201,0.24273911,86513.0,86510.0,0.00448024]
[1764664272406,0.01155895,86513.0,86511.0,0.05894]
[1764664272616,0.01155895,86513.0,86512.0,0.03874]
[1764664272821,0.01155842,86517.0,86512.0,0.05029909]
[1764664273035,0.001,86519.0,86517.0,0.03874]
[1764664273248,0.001,86519.0,86518.0,0.03874]
[1764664273678,0.01155788,86521.0,86518.0,0.09768]
[1764664273948,0.01155735,86525.0,86521.0,0.30150522]
[1764664274159,0.01155721,86526.0,86524.0,0.03874]
[1764664274325,0.24270245,86526.0,86524.0,0.03874]
[1764664274923,0.24270245,86526.0,86525.0,0.03874]
[1764664275313,0.01155721,86526.0,86525.0,0.03874]
[1764664275514,2.0,86526.0,86525.0,0.03874]
[1764664275958,0.23115288,86524.0,86521.0,0.02005]
[1764664276205,0.01155748,86524.0,86521.0,0.02005]
[1764664276327,0.23115441,86523.0,86521.0,0.02005]
[1764664276669,0.23115242,86523.0,86521.0,0.02005]
[1764664276848,0.23115242,86523.0,86522.0,0.03874]
[1764664277049,0.24270736,86524.0,86522.0,0.03874]
[1764664277251,0.23115241,86523.0,86522.0,0.03874]
[1764664278038,0.23114973,86524.0,86522.0,0.03874]
[1764664278240,0.01155721,86526.0,86523.0,0.04061431]
[1764664278503,0.23114827,86525.0,86523.0,0.03874]
[1764664278680,0.23115279,86523.0,86521.0,0.02005]
[1764664279111,2.0,86526.0,86522.0,0.09768]
[1764664279287,0.01155735,86525.0,86523.0,0.03874]
[1764664279695,0.01155735,86525.0,86524.0,0.00184252]
[1764664279956,0.24270056,86527.0,86524.0,0.00184252]
[1764664280175,0.00038453,86529.0,86521.0,0.02005]
[1764664280176,2.0,86526.0,86522.0,0.01155775]
[1764664280396,0.001,86526.0,86523.0,0.01155762]
[1764664280603,0.00038453,86529.0,86525.0,0.03874]
[1764664280776,0.00038453,86529.0,86528.0,0.03874]
[1764664283404,0.00138453,86529.0,86528.0,0.03874]
[1764664283602,0.00038453,86529.0,86528.0,0.03874]
[1764664283970,0.00038453,86529.0,86528.0,0.03974]
[1764664284381,0.00038453,86529.0,86528.0,0.09868]
[1764664285698,0.00038453,86529.0,86528.0,0.03974]
[1764664285843,0.00038453,86529.0,86528.0,0.09868]
[1764664286201,0.00038453,86529.0,86528.0,0.03974]
[1764664286888,0.00038453,86529.0,86528.0,0.09868]
[1764664288020,0.00038453,86529.0,86528.0,0.03974]
[1764664288258,0.00038453,86529.0,86528.0,0.09868]
[1764664288645,0.00038453,86529.0,86528.0,0.32981905]
[1764664291056,0.00038453,86529.0,86528.0,0.33153442]
[1764664292679,0.00038453,86529.0,86528.0,0.73153442]
[1764664293141,0.00038453,86529.0,86528.0,0.73053442]
[1764664293673,0.00038453,86529.0,86528.0,0.73253442]
[1764664293878,0.00038453,86529.0,86528.0,0.73053442]
[1764664294285,0.00038453,86529.0,86528.0,0.73453442]
[1764664296812,2.01155308,86557.0,86553.0,0.01155361]
[1764664297014,2.01155308,86557.0,86553.0,0.24274136]
[1764664297015,2.0,86556.0,86553.0,0.24274136]
[1764664297179,2.0,86556.0,86555.0,0.0199]
[1764664298159,2.0,86557.0,86555.0,0.25096695]
[1764664298370,2.0,86559.0,86556.0,0.23106428]
[1764664298550,0.24260867,86560.0,86558.0,0.03654]
[1764664298739,0.02453723,86561.0,86558.0,0.26759888]
[1764664298918,2.24260409,86561.0,86558.0,0.26759888]
[1764664299118,0.23105627,86559.0,86558.0,0.03654]
[1764664299335,0.23106337,86557.0,86555.0,0.0199]
[1764664299549,2.0,86561.0,86557.0,0.23106077]
[1764664299774,2.0,86561.0,86555.0,0.03145334]
[1764664299775,0.01155268,86560.0,86555.0,0.03145334]
[1764664299910,0.002,86561.0,86558.0,0.23105883]
[1764664300106,0.24260447,86561.0,86558.0,0.23105883]
[1764664300336,0.23105381,86560.0,86557.0,0.2426125]
[1764664300532,0.23105381,86560.0,86558.0,0.23105878]
[1764664300858,0.24260447,86561.0,86558.0,0.23105836]
[1764664301185,0.01155254,86561.0,86559.0,0.23105578]
[1764664301377,0.24260372,86561.0,86558.0,0.23105836]
[1764664301679,0.01155268,86560.0,86557.0,0.23106152]
[1764664301893,0.24260847,86560.0,86557.0,0.23106152]
[1764664302232,0.24460422,86561.0,86556.0,0.24344047]
[1764664302436,0.24260422,86561.0,86558.0,0.23105649]
[1764664302857,0.002,86560.0,86559.0,0.23105627]
[1764664303058,2.0,86561.0,86560.0,0.2310536]
[1764664303462,0.002,86561.0,86560.0,0.3263936]
[1764664303660,0.323,86568.0,86564.0,0.24259015]
[1764664303878,0.323,86568.0,86562.0,0.01155241]
[1764664304125,0.323,86568.0,86564.0,0.24259413]
[1764664304342,0.323,86568.0,86565.0,0.23103769]
[1764664304547,0.01155174,86567.0,86562.0,0.24259533]
[1764664304718,0.2425871,86567.0,86564.0,0.23104193]
[1764664304920,0.56558399,86568.0,86565.0,0.23104]
[1764664305163,0.323,86570.0,86566.0,0.23103524]
[1764664305364,0.56558622,86568.0,86564.0,0.23104068]
[1764664305665,0.56558397,86568.0,86564.0,0.23104036]
[1764664305841,0.56558397,86568.0,86565.0,0.23103801]
[1764664306041,0.01155187,86566.0,86561.0,0.03056254]
[1764664306247,0.23104808,86563.0,86561.0,0.01901]
[1764664306444,0.23104826,86562.0,86561.0,0.01901]
[1764664306630,0.23104808,86563.0,86561.0,0.01901]
[1764664307238,0.33455134,86570.0,86565.0,0.01155201]
[1764664307465,2.0,86568.0,86567.0,0.2310344]
[1764664307690,0.01155094,86573.0,86565.0,0.24259057]
[1764664307691,0.323,86569.0,86565.0,0.01155201]
[1764664307896,2.0,86573.0,86571.0,0.23102379]
[1764664308057,2.0,86571.0,86568.0,0.01155161]
[1764664308268,2.0,86571.0,86568.0,0.24258346]
[1764664308649,2.0,86571.0,86568.0,0.23103185]
[1764664308894,0.01155147,86569.0,86565.0,0.01155201]
[1764664309089,2.0,86570.0,86566.0,0.23103753]
[1764664309289,2.0,86573.0,86569.0,0.03654]
[1764664309493,2.0,86575.0,86572.0,0.23102123]
[1764664309708,2.0,86575.0,86571.0,0.01155121]
[1764664309906,2.01155067,86575.0,86570.0,0.03145134]
[1764664310115,2.0,86573.0,86571.0,0.2310219]
[1764664310320,0.03059066,86593.0,86582.0,0.01154974]
[1764664310680,2.0,86602.0,86601.0,0.23094421]
[1764664310878,0.0229,86603.0,86602.0,0.23094154]
[1764664311012,0.02778,86605.0,86604.0,0.23093621]
[1764664311434,0.02778,86605.0,86604.0,0.0001156]
[1764664311853,0.25871354,86605.0,86604.0,0.0001156]
[1764664312341,0.62082354,86605.0,86604.0,0.0001156]
[1764664312592,0.67603354,86605.0,86604.0,0.0001156]
[1764664313344,0.67803354,86605.0,86604.0,0.0001156]
[1764664315286,2.67803354,86605.0,86604.0,0.0001156]
[1764664315870,0.325,86605.0,86604.0,0.0001156]
[1764664316502,0.55593354,86605.0,86604.0,0.0001156]
[1764664317032,2.67474896,86605.0,86604.0,0.0001156]
[1764664317165,2.65025354,86605.0,86604.0,0.0001156]
[1764664317362,2.38860938,86605.0,86604.0,0.0001156]
[1764664317565,2.59504354,86605.0,86604.0,0.0001156]
[1764664318401,2.61953713,86605.0,86604.0,0.0001156]
[1764664320462,2.44381359,86605.0,86604.0,0.0001156]
[1764664320663,2.38860359,86605.0,86604.0,0.0001156]
[1764664320839,0.34949359,86605.0,86604.0,0.23105181]
[1764664321170,0.002,86605.0,86604.0,0.23105181]
[1764664321303,0.002,86605.0,86604.0,0.34471181]
[1764664322174,2.0,86624.0,86618.0,0.23089874]
[1764664322356,2.0,86617.0,86611.0,0.23091504]
[1764664322562,2.0,86617.0,86608.0,0.02986627]
[1764664322563,0.01154521,86616.0,86608.0,0.01832]
[1764664322736,0.01154561,86613.0,86608.0,0.01832]
[1764664322937,0.01154547,86614.0,86608.0,0.01832]
[1764664323107,0.01154574,86612.0,86606.0,0.05955]
[1764664323308,0.01154561,86613.0,86607.0,0.24247448]
[1764664323685,0.24246366,86611.0,86606.0,0.05480094]
[1764664323943,0.24245823,86613.0,86612.0,0.03654]
[1764664324144,0.23092603,86608.0,86602.0,0.0199]
[1764664324345,0.23093146,86606.0,86602.0,0.0199]
[1764664324560,0.23093205,86606.0,86602.0,0.03822]
[1764664324782,0.23093162,86606.0,86602.0,0.03822]
[1764664325395,0.23093162,86606.0,86605.0,0.03654]
[1764664326623,0.23093162,86606.0,86604.0,0.0578956]
[1764664326624,0.23093354,86605.0,86604.0,0.0001156]
[1764664326748,2.23093354,86605.0,86604.0,0.0001156]
[1764664326956,2.0,86605.0,86604.0,0.0001156]
[1764664327157,2.23093354,86605.0,86604.0,0.0001156]
[1764664327599,2.64764354,86605.0,86604.0,0.0001156]
[1764664329212,2.64864354,86605.0,86604.0,0.0001156]
[1764664329415,2.64764354,86605.0,86604.0,0.0001156]
[1764664329615,2.23093354,86605.0,86604.0,0.0001156]
[1764664329870,0.004,86605.0,86604.0,0.0957556]